fUST/lending_fUST_20250718
["ID","MTS","AMOUNT","RATE_DAILY","PERIOD"]
[372887315,1752793844086,-460.0,0.00016744,2]
[372887316,1752793844096,-460.0,0.00016744,2]
[372887317,1752793844105,-460.0,0.00016744,2]
[372887318,1752793844114,-460.0,0.00016744,2]
[372887319,1752793844123,-460.0,0.00016744,2]
[372887320,1752793844133,-460.0,0.00016744,2]
[372887321,1752793844142,-460.0,0.00016744,2]
[372887322,1752793844152,-460.0,0.00016744,2]
[372887323,1752793844161,-460.0,0.00016744,2]
[372887324,1752793844171,-460.0,0.00016744,2]
[372887325,1752793844180,-460.0,0.00016744,2]
[372887326,1752793844190,-460.0,0.00016744,2]
[372887327,1752793844200,-460.0,0.00016744,2]
[372887328,1752793844209,-460.0,0.00016744,2]
[372887329,1752793844218,-460.0,0.00016744,2]
[372887330,1752793844227,-460.0,0.00016744,2]
[372887331,1752793844237,-460.0,0.00016744,2]
[372887332,1752793844246,-460.0,0.00016744,2]
[372887333,1752793844256,-460.0,0.00016744,2]
[372887334,1752793844265,-460.0,0.00016744,2]
[372887335,1752793844277,-1777.72,0.00016744,2]
[372887336,1752793844287,-460.0,0.00016744,2]
[372887337,1752793844297,-460.0,0.00016744,2]
[372887338,1752793844307,-460.0,0.00016744,2]
[372887339,1752793844317,-460.0,0.00016744,2]
[372887340,1752793844327,-460.0,0.00016744,2]
[372887341,1752793844337,-280.8858681,0.00016744,2]
[372887342,1752793844347,-460.0,0.00016744,2]
[372887343,1752793844356,-460.0,0.00016744,2]
[372887344,1752793844365,-460.0,0.00016744,2]
[372887345,1752793844374,-460.0,0.00016744,2]
[372887346,1752793844383,-2392.76,0.00016744,2]
[372887347,1752793844393,-460.0,0.00016744,2]
[372887348,1752793844402,-367.36623763,0.00016744,2]
[372887349,1752793844411,-649.5,0.00016744,2]
[372887350,1752793844420,-460.0,0.00016744,2]
[372887351,1752793844430,-460.0,0.00016744,2]
[372887352,1752793844440,-229.12689973,0.00016744,2]
[372887353,1752793844450,-330.68105287,0.00016744,2]
[372887354,1752793844459,-460.0,0.00016744,2]
[372887355,1752793844469,-460.0,0.00016745,2]
[372887356,1752793844478,-460.0,0.00016745,2]
[372887357,1752793844488,-460.0,0.00016745,2]
[372887358,1752793844498,-500.0,0.00016745,2]
[372887359,1752793844507,-460.0,0.00016745,2]
[372887360,1752793844517,-460.0,0.00016745,2]
[372887361,1752793844529,-460.0,0.00016745,2]
[372887362,1752793844539,-460.0,0.00016745,2]
[372887363,1752793844548,-460.0,0.00016745,2]
[372887364,1752793844557,-460.0,0.00016745,2]
[372887365,1752793844567,-460.0,0.00016745,2]
[372887366,1752793844576,-2206.95,0.00016745,2]
[372887367,1752793844586,-460.0,0.00016745,2]
[372887368,1752793844595,-460.0,0.00016745,2]
[372887369,1752793844605,-3302.1,0.00016745,2]
[372887370,1752793844615,-460.0,0.00016745,2]
[372887371,1752793844625,-697.81,0.00016745,2]
[372887372,1752793844634,-2294.24,0.00016745,2]
[372887373,1752793844643,-6629.84,0.00016745,2]
[372887374,1752793844652,-460.0,0.00016769,2]
[372887375,1752793844662,-460.0,0.00016769,2]
[372887376,1752793844671,-460.0,0.00016769,2]
[372887377,1752793844681,-460.0,0.00016769,2]
[372887378,1752793844695,-500.0,0.00016773,2]
[372887379,1752793844707,-618.45833334,0.00016773,2]
[372887380,1752793844717,-500.0,0.00016773,2]
[372887381,1752793844727,-500.0,0.00016773,2]
[372887382,1752793844736,-500.0,0.00016773,2]
[372887383,1752793844746,-500.0,0.00016773,2]
[372887384,1752793844756,-167.89196297,0.00016773,2]
[372887385,1752793844765,-500.0,0.00016773,2]
[372887386,1752793844778,-500.0,0.00016773,2]
[372887387,1752793844787,-500.0,0.00016773,2]
[372887388,1752793844798,-500.81999821,0.00016773,2]
[372887389,1752793844808,-500.0,0.00016773,2]
[372887390,1752793844821,-264.23987451,0.00016966,2]
[372887391,1752793844830,-460.0,0.00016986,2]
[372887392,1752793844839,-460.0,0.00016986,2]
[372887393,1752793844848,-901.01,0.00016986,2]
[372887394,1752793844859,-3975.29,0.00016986,2]
[372887395,1752793844868,-460.0,0.00016986,2]
[372887396,1752793844877,-460.0,0.00016986,2]
[372887397,1752793844887,-460.0,0.00016986,2]
[372887398,1752793844898,-460.0,0.00016986,2]
[372887399,1752793844908,-985.54,0.00016986,2]
[372887400,1752793844918,-1250.62,0.00016986,2]
[372887401,1752793844927,-460.0,0.00016986,2]
[372887402,1752793844937,-460.0,0.00016986,2]
[372887403,1752793844946,-666.88,0.00016986,2]
[372887404,1752793844956,-460.0,0.00016986,2]
[372887405,1752793844965,-460.0,0.00016986,2]
[372887406,1752793844975,-460.0,0.00016986,2]
[372887407,1752793844984,-460.0,0.00016986,2]
[372887408,1752793844993,-1072.49,0.00016986,2]
[372887409,1752793845003,-460.0,0.00016986,2]
[372887410,1752793845012,-460.0,0.00016986,2]
[372887411,1752793845021,-460.0,0.00016986,2]
[372887412,1752793845034,-460.0,0.00017017,2]
[372887413,1752793845043,-460.0,0.00017017,2]
[372887414,1752793845053,-460.0,0.00017017,2]
[372887415,1752793845062,-460.0,0.00017017,2]
[372887416,1752793845072,-460.0,0.00017017,2]
[372887417,1752793845081,-460.0,0.00017017,2]
[372887418,1752793845090,-601.45,0.00017017,2]
[372887419,1752793845101,-460.0,0.00017017,2]
[372887420,1752793845111,-460.0,0.00017017,2]
[372887421,1752793845120,-519.69,0.00017017,2]
[372887422,1752793845129,-154.83309416,0.00017017,2]
[372887423,1752793845138,-460.0,0.00017017,2]
[372887424,1752793845148,-460.0,0.00017017,2]
[372887425,1752793845157,-577.76,0.00017017,2]
[372887426,1752793845167,-460.0,0.00017017,2]
[372887427,1752793845176,-460.0,0.00017017,2]
[372887428,1752793845186,-2276.17,0.00017017,2]
[372887429,1752793845195,-460.0,0.00017017,2]
[372887430,1752793845204,-190.84290686,0.00017017,2]
[372887431,1752793845213,-460.0,0.00017017,2]
[372887432,1752793845222,-460.0,0.00017017,2]
[372887433,1752793845231,-460.0,0.00017017,2]
[372887434,1752793845241,-460.0,0.00017017,2]
[372887435,1752793845251,-460.0,0.00017017,2]
[372887436,1752793845260,-460.0,0.00017017,2]
[372887437,1752793845270,-460.0,0.00017017,2]
[372887438,1752793845281,-460.0,0.00017017,2]
[372887439,1752793845290,-460.0,0.00017017,2]
[372887440,1752793845300,-462.83742808,0.00017017,2]
[372887441,1752793845309,-460.0,0.00017017,2]
[372887442,1752793845318,-463.45,0.00017017,2]
[372887443,1752793845327,-460.0,0.00017017,2]
[372887444,1752793845337,-460.0,0.00017017,2]
[372887445,1752793845346,-460.0,0.00017017,2]
[372887446,1752793845356,-460.0,0.00017017,2]
[372887447,1752793845365,-461.3476032,0.00017017,2]
[372887448,1752793845374,-460.0,0.00017017,2]
[372887449,1752793845383,-461.22608787,0.00017017,2]
[372887450,1752793845392,-460.0,0.00017017,2]
[372887451,1752793845402,-460.0,0.00017017,2]
[372887452,1752793845412,-460.0,0.00017017,2]
[372887453,1752793845422,-460.0,0.00017017,2]
[372887454,1752793845431,-460.0,0.00017017,2]
[372887455,1752793845440,-460.0,0.00017017,2]
[372887456,1752793845450,-460.0,0.00017017,2]
[372887457,1752793845460,-488.28,0.00017017,2]
[372887458,1752793845469,-460.0,0.00017017,2]
[372887459,1752793845479,-460.0,0.00017017,2]
[372887460,1752793845588,-460.0,0.00017017,2]
[372887461,1752793845599,-460.0,0.00017018,2]
[372887462,1752793845608,-460.0,0.00017018,2]
[372887463,1752793845618,-460.0,0.00017018,2]
[372887465,1752793845627,-460.0,0.00017018,2]
[372887466,1752793845637,-460.0,0.00017018,2]
[372887467,1752793845647,-460.0,0.00017018,2]
[372887468,1752793845656,-460.0,0.00017018,2]
[372887469,1752793845665,-460.0,0.00017018,2]
[372887470,1752793845675,-560.92994817,0.00017018,2]
[372887471,1752793845685,-468.77452312,0.00017018,2]
[372887473,1752793845695,-460.0,0.00017018,2]
[372887475,1752793845704,-460.0,0.00017018,2]
[372887476,1752793845715,-460.0,0.00017018,2]
[372887477,1752793845725,-460.0,0.00017018,2]
[372887478,1752793845734,-460.0,0.00017018,2]
[372887479,1752793845743,-466.78716263,0.00017018,2]
[372887480,1752793845753,-665.27,0.00017018,2]
[372887481,1752793845762,-460.0,0.00017018,2]
[372887482,1752793845771,-460.0,0.00017018,2]
[372887483,1752793845783,-460.0,0.00017018,2]
[372887484,1752793845792,-460.0,0.00017018,2]
[372887485,1752793845802,-460.0,0.00017018,2]
[372887486,1752793845812,-460.0,0.00017018,2]
[372887487,1752793845824,-460.0,0.00017018,2]
[372887488,1752793845834,-460.0,0.00017018,2]
[372887489,1752793845843,-460.0,0.00017018,2]
[372887490,1752793845854,-460.0,0.00017018,2]
[372887491,1752793845864,-460.0,0.00017018,2]
[372887492,1752793845874,-460.0,0.00017018,2]
[372887493,1752793845883,-460.0,0.00017018,2]
[372887495,1752793845894,-460.0,0.00017018,2]
[372887497,1752793845904,-1777.72,0.00017018,2]
[372887498,1752793845915,-460.0,0.00017018,2]
[372887499,1752793845924,-460.0,0.00017018,2]
[372887500,1752793845934,-460.0,0.00017018,2]
[372887501,1752793845943,-460.0,0.00017018,2]
[372887502,1752793845953,-460.0,0.00017018,2]
[372887503,1752793845963,-460.0,0.00017018,2]
[372887504,1752793845973,-2392.76,0.00017018,2]
[372887505,1752793845983,-472.96088127,0.00017018,2]
[372887506,1752793845993,-649.5,0.00017018,2]
[372887507,1752793846002,-460.0,0.00017018,2]
[372887508,1752793846012,-460.0,0.00017018,2]
[372887509,1752793846021,-460.0,0.00017018,2]
[372887510,1752793846035,-460.0,0.00017019,2]
[372887511,1752793846045,-254.16,0.00017019,2]
[372887512,1752793846055,-460.0,0.00017019,2]
[372887513,1752793846064,-460.0,0.00017019,2]
[372887514,1752793846074,-460.0,0.00017019,2]
[372887515,1752793846084,-460.0,0.00017019,2]
[372887516,1752793846094,-460.0,0.00017019,2]
[372887517,1752793846103,-460.0,0.00017019,2]
[372887518,1752793846113,-2206.95,0.00017019,2]
[372887519,1752793846122,-3302.1,0.00017019,2]
[372887520,1752793846132,-460.0,0.00017019,2]
[372887521,1752793846141,-697.81,0.00017019,2]
[372887523,1752793846151,-2294.24,0.00017019,2]
[372887524,1752793846160,-6629.84,0.00017019,2]
[372887525,1752793846170,-460.0,0.00017043,2]
[372887526,1752793846180,-216.77627053,0.00017073,2]
[372887527,1752793846189,-841.91460913,0.00017221,2]
[372887528,1752793846199,-1000.0,0.00017221,2]
[372887529,1752793846209,-1000.0,0.00017221,2]
[372887530,1752793846219,-1000.0,0.00017221,2]
[372887531,1752793846228,-1000.0,0.00017221,2]
[372887532,1752793846237,-1000.0,0.00017221,2]
[372887533,1752793846247,-500.0,0.00017221,2]
[372887534,1752793846256,-906.14138722,0.00017237,2]
[372887535,1752793846266,-460.0,0.0001726,2]
[372887536,1752793846277,-460.0,0.0001726,2]
[372887537,1752793846287,-901.01,0.0001726,2]
[372887538,1752793846297,-3975.29,0.0001726,2]
[372887539,1752793846307,-460.0,0.0001726,2]
[372887540,1752793846316,-460.0,0.0001726,2]
[372887541,1752793846326,-460.0,0.0001726,2]
[372887542,1752793846336,-460.0,0.0001726,2]
[372887543,1752793846345,-985.54,0.0001726,2]
[372887544,1752793846355,-1250.62,0.0001726,2]
[372887545,1752793846364,-460.0,0.0001726,2]
[372887546,1752793846373,-460.0,0.0001726,2]
[372887547,1752793846386,-666.88,0.0001726,2]
[372887548,1752793846395,-460.0,0.0001726,2]
[372887549,1752793846405,-460.0,0.0001726,2]
[372887550,1752793846415,-460.0,0.0001726,2]
[372887551,1752793846425,-460.0,0.0001726,2]
[372887552,1752793846434,-1072.49,0.0001726,2]
[372887553,1752793846444,-460.0,0.0001726,2]
[372887554,1752793846453,-460.0,0.0001726,2]
[372887555,1752793846462,-460.0,0.0001726,2]
[372887556,1752793846472,-500.0,0.00017273,2]
[372887557,1752793846481,-500.0,0.00017273,2]
[372887558,1752793846490,-500.0,0.00017273,2]
[372887559,1752793846500,-500.0,0.00017273,2]
[372887560,1752793846510,-500.0,0.00017273,2]
[372887561,1752793846520,-500.0,0.00017273,2]
[372887562,1752793846534,-500.0,0.00017273,2]
[372887563,1752793846544,-500.0,0.00017273,2]
[372887564,1752793846553,-460.0,0.00017291,2]
[372887565,1752793846563,-460.0,0.00017291,2]
[372887566,1752793846573,-460.0,0.00017291,2]
[372887567,1752793846582,-460.0,0.00017291,2]
[372887568,1752793846593,-460.0,0.00017291,2]
[372887569,1752793846602,-460.0,0.00017291,2]
[372887570,1752793846612,-460.0,0.00017291,2]
[372887571,1752793846622,-519.69,0.00017291,2]
[372887572,1752793846632,-177.83412788,0.00017291,2]
[372887573,1752793846641,-460.0,0.00017291,2]
[372887574,1752793846651,-414.72475317,0.00017291,2]
[372887575,1752793846660,-460.0,0.00017291,2]
[372887576,1752793846670,-2276.17,0.00017291,2]
[372887577,1752793846680,-460.0,0.00017291,2]
[372887578,1752793846689,-460.0,0.00017291,2]
[372887579,1752793846699,-460.0,0.00017291,2]
[372887580,1752793846709,-460.0,0.00017291,2]
[372887581,1752793846719,-460.0,0.00017291,2]
[372887582,1752793846729,-410.19535191,0.00017291,2]
[372887583,1752793846747,-460.0,0.00017291,2]
[372887584,1752793846756,-460.0,0.00017291,2]
[372887585,1752793846765,-460.0,0.00017291,2]
[372887586,1752793846777,-460.0,0.00017291,2]
[372887587,1752793846787,-460.0,0.00017291,2]
[372887588,1752793846796,-463.45,0.00017291,2]
[372887589,1752793846806,-460.0,0.00017291,2]
[372887590,1752793846817,-460.0,0.00017291,2]
[372887591,1752793846828,-460.0,0.00017291,2]
[372887592,1752793846837,-288.04854768,0.00017291,2]
[372887593,1752793846847,-460.0,0.00017291,2]
[372887594,1752793846858,-460.0,0.00017291,2]
[372887595,1752793846868,-460.0,0.00017291,2]
[372887596,1752793846877,-460.0,0.00017291,2]
[372887597,1752793846887,-460.0,0.00017291,2]
[372887598,1752793846898,-460.0,0.00017291,2]
[372887599,1752793846907,-460.0,0.00017291,2]
[372887600,1752793846916,-488.28,0.00017291,2]
[372887601,1752793846926,-460.0,0.00017291,2]
[372887602,1752793846935,-460.0,0.00017291,2]
[372887603,1752793846944,-460.0,0.00017291,2]
[372887604,1752793846954,-460.0,0.00017292,2]
[372887605,1752793846964,-378.47022634,0.00017292,2]
[372887606,1752793846973,-460.0,0.00017292,2]
[372887607,1752793846983,-460.0,0.00017292,2]
[372887608,1752793846992,-460.0,0.00017292,2]
[372887609,1752793847001,-460.0,0.00017292,2]
[372887610,1752793847010,-460.0,0.00017292,2]
[372887611,1752793847020,-460.0,0.00017292,2]
[372887612,1752793847033,-665.27,0.00017292,2]
[372887613,1752793847043,-460.0,0.00017292,2]
[372887614,1752793847052,-460.0,0.00017292,2]
[372887615,1752793847062,-257.79,0.00017292,2]
[372887616,1752793847071,-460.0,0.00017292,2]
[372887617,1752793847081,-460.0,0.00017292,2]
[372887618,1752793847090,-460.0,0.00017292,2]
[372887619,1752793847100,-460.0,0.00017292,2]
[372887620,1752793847109,-460.0,0.00017292,2]
[372887621,1752793847119,-460.0,0.00017292,2]
[372887622,1752793847128,-460.0,0.00017292,2]
[372887623,1752793847137,-460.0,0.00017292,2]
[372887624,1752793847147,-460.0,0.00017292,2]
[372887625,1752793847156,-460.0,0.00017292,2]
[372887626,1752793847165,-1777.72,0.00017292,2]
[372887627,1752793847175,-460.0,0.00017292,2]
[372887628,1752793847184,-460.0,0.00017292,2]
[372887629,1752793847194,-460.0,0.00017292,2]
[372887630,1752793847203,-460.0,0.00017292,2]
[372887631,1752793847212,-460.0,0.00017292,2]
[372887632,1752793847222,-2392.76,0.00017292,2]
[372887633,1752793847231,-649.5,0.00017292,2]
[372887634,1752793847240,-460.0,0.00017292,2]
[372887635,1752793847249,-460.0,0.00017293,2]
[372887636,1752793847259,-460.0,0.00017293,2]
[372887637,1752793847268,-460.0,0.00017293,2]
[372887638,1752793847279,-460.0,0.00017293,2]
[372887639,1752793847289,-460.0,0.00017293,2]
[372887640,1752793847298,-2206.95,0.00017293,2]
[372887641,1752793847307,-3302.1,0.00017293,2]
[372887642,1752793847317,-460.0,0.00017293,2]
[372887643,1752793847326,-697.81,0.00017293,2]
[372887644,1752793847335,-2294.24,0.00017293,2]
[372887645,1752793847345,-6629.84,0.00017293,2]
[372887646,1752793847355,-460.0,0.00017317,2]
[372887647,1752793847364,-1000.0,0.00017321,2]
[372887648,1752793847373,-500.0,0.00017321,2]
[372887649,1752793847383,-1000.0,0.00017321,2]
[372887650,1752793847392,-1000.0,0.00017321,2]
[372887651,1752793847402,-500.0,0.00017321,2]
[372887652,1752793847411,-1000.0,0.00017321,2]
[372887653,1752793847420,-460.0,0.00017534,2]
[372887654,1752793847430,-460.0,0.00017534,2]
[372887655,1752793847439,-901.01,0.00017534,2]
[372887656,1752793847448,-3975.29,0.00017534,2]
[372887657,1752793847459,-460.0,0.00017534,2]
[372887658,1752793847468,-460.0,0.00017534,2]
[372887659,1752793847478,-460.0,0.00017534,2]
[372887660,1752793847487,-460.0,0.00017534,2]
[372887661,1752793847496,-985.54,0.00017534,2]
[372887662,1752793847505,-1250.62,0.00017534,2]
[372887663,1752793847514,-460.0,0.00017534,2]
[372887664,1752793847524,-460.0,0.00017534,2]
[372887665,1752793847534,-666.88,0.00017534,2]
[372887666,1752793847543,-460.0,0.00017534,2]
[372887667,1752793847553,-460.0,0.00017534,2]
[372887668,1752793847563,-460.0,0.00017534,2]
[372887669,1752793847572,-1072.49,0.00017534,2]
[372887670,1752793847582,-460.0,0.00017534,2]
[372887671,1752793847591,-460.0,0.00017534,2]
[372887672,1752793847601,-460.0,0.00017534,2]
[372887673,1752793847611,-231.5,0.00017565,2]
[372887674,1752793847622,-440.8,0.00017565,2]
[372887675,1752793847632,-460.0,0.00017565,2]
[372887676,1752793847642,-460.0,0.00017565,2]
[372887677,1752793847652,-460.0,0.00017565,2]
[372887678,1752793847662,-460.0,0.00017565,2]
[372887679,1752793847671,-460.0,0.00017565,2]
[372887680,1752793847681,-519.69,0.00017565,2]
[372887681,1752793847691,-460.0,0.00017565,2]
[372887682,1752793847700,-504.73130644,0.00017565,2]
[372887683,1752793847710,-2276.17,0.00017565,2]
[372887684,1752793847719,-460.0,0.00017565,2]
[372887685,1752793847729,-460.0,0.00017565,2]
[372887686,1752793847738,-460.0,0.00017565,2]
[372887687,1752793847748,-460.0,0.00017565,2]
[372887688,1752793847757,-460.0,0.00017565,2]
[372887689,1752793847767,-460.0,0.00017565,2]
[372887690,1752793847778,-460.0,0.00017565,2]
[372887691,1752793847788,-460.0,0.00017565,2]
[372887692,1752793847797,-460.0,0.00017565,2]
[372887693,1752793847807,-463.45,0.00017565,2]
[372887694,1752793847818,-460.0,0.00017565,2]
[372887695,1752793847829,-460.0,0.00017565,2]
[372887696,1752793847838,-460.0,0.00017565,2]
[372887697,1752793847849,-460.0,0.00017565,2]
[372887698,1752793847859,-460.0,0.00017565,2]
[372887699,1752793847868,-460.0,0.00017565,2]
[372887700,1752793847878,-460.0,0.00017565,2]
[372887701,1752793847887,-460.0,0.00017565,2]
[372887702,1752793847898,-460.0,0.00017565,2]
[372887703,1752793847908,-460.0,0.00017565,2]
[372887704,1752793847917,-488.28,0.00017565,2]
[372887705,1752793847927,-460.0,0.00017565,2]
[372887706,1752793847937,-169.92,0.00017565,2]
[372887707,1752793847946,-460.0,0.00017565,2]
[372887708,1752793847956,-460.0,0.00017566,2]
[372887709,1752793847965,-460.0,0.00017566,2]
[372887710,1752793847974,-460.0,0.00017566,2]
[372887711,1752793847984,-460.0,0.00017566,2]
[372887712,1752793847993,-508.8848807,0.00017566,2]
[372887713,1752793848002,-460.0,0.00017566,2]
[372887714,1752793848012,-665.27,0.00017566,2]
[372887715,1752793848021,-460.0,0.00017566,2]
[372887716,1752793848033,-460.0,0.00017566,2]
[372887717,1752793848042,-460.0,0.00017566,2]
[372887718,1752793848052,-363.96,0.00017566,2]
[372887719,1752793848062,-460.0,0.00017566,2]
[372887720,1752793848072,-460.0,0.00017566,2]
[372887721,1752793848082,-460.0,0.00017566,2]
[372887722,1752793848092,-460.0,0.00017566,2]
[372887723,1752793848102,-460.0,0.00017566,2]
[372887724,1752793848114,-460.0,0.00017566,2]
[372887725,1752793848124,-460.0,0.00017566,2]
[372887726,1752793848133,-460.0,0.00017566,2]
[372887727,1752793848142,-1777.72,0.00017566,2]
[372887728,1752793848236,-460.0,0.00017566,2]
[372887729,1752793848260,-460.0,0.00017566,2]
[372887730,1752793848270,-460.0,0.00017566,2]
[372887731,1752793848283,-460.0,0.00017566,2]
[372887732,1752793848292,-460.0,0.00017566,2]
[372887733,1752793848301,-2392.76,0.00017566,2]
[372887734,1752793848311,-649.5,0.00017566,2]
[372887735,1752793848320,-460.0,0.00017566,2]
[372887736,1752793848330,-460.0,0.00017567,2]
[372887737,1752793848340,-460.0,0.00017567,2]
[372887738,1752793848350,-460.0,0.00017567,2]
[372887739,1752793848359,-439.50701784,0.00017567,2]
[372887740,1752793848368,-460.0,0.00017567,2]
[372887741,1752793848378,-2206.95,0.00017567,2]
[372887742,1752793848387,-3302.1,0.00017567,2]
[372887743,1752793848395,-460.0,0.00017567,2]
[372887744,1752793848404,-697.81,0.00017567,2]
[372887745,1752793848413,-2294.24,0.00017567,2]
[372887746,1752793848422,-6629.84,0.00017567,2]
[372887747,1752793848432,-460.0,0.00017591,2]
[372887748,1752793848442,-1500.0,0.00017768,2]
[372887749,1752793848451,-1004.70318548,0.00017768,2]
[372887750,1752793848461,-1000.0,0.00017768,2]
[372887751,1752793848470,-1500.0,0.00017768,2]
[372887752,1752793848480,-1000.0,0.00017768,2]
[372887753,1752793848490,-460.0,0.00017808,2]
[372887754,1752793848499,-460.0,0.00017808,2]
[372887755,1752793848508,-901.01,0.00017808,2]
[372887756,1752793848518,-3975.29,0.00017808,2]
[372887757,1752793848529,-460.0,0.00017808,2]
[372887758,1752793848539,-460.0,0.00017808,2]
[372887759,1752793848548,-460.0,0.00017808,2]
[372887760,1752793848558,-985.54,0.00017808,2]
[372887761,1752793848568,-1250.62,0.00017808,2]
[372887762,1752793848577,-460.0,0.00017808,2]
[372887763,1752793848586,-666.88,0.00017808,2]
[372887764,1752793848596,-460.0,0.00017808,2]
[372887765,1752793848606,-460.0,0.00017808,2]
[372887766,1752793848616,-460.0,0.00017808,2]
[372887767,1752793848626,-1072.49,0.00017808,2]
[372887768,1752793848636,-460.0,0.00017808,2]
[372887769,1752793848646,-460.0,0.00017808,2]
[372887770,1752793848656,-460.0,0.00017808,2]
[372887771,1752793848666,-1000.0,0.00017821,2]
[372887772,1752793848675,-1000.0,0.00017821,2]
[372887773,1752793848684,-1000.0,0.00017821,2]
[372887774,1752793848694,-500.0,0.00017821,2]
[372887775,1752793848704,-375.97667728,0.00017821,2]
[372887776,1752793848714,-628.72,0.0001783,3]
[372887777,1752793848724,-314.36,0.0001783,3]
[372887778,1752793848733,-1257.44,0.00017831,3]
[372887779,1752793848743,-460.0,0.00017839,2]
[372887780,1752793848753,-460.0,0.00017839,2]
[372887781,1752793848765,-435.24,0.00017839,2]
[372887782,1752793848775,-460.0,0.00017839,2]
[372887783,1752793848787,-460.0,0.00017839,2]
[372887784,1752793848797,-519.69,0.00017839,2]
[372887785,1752793848807,-460.0,0.00017839,2]
[372887786,1752793848818,-2276.17,0.00017839,2]
[372887787,1752793848829,-460.0,0.00017839,2]
[372887788,1752793848839,-460.0,0.00017839,2]
[372887789,1752793848849,-460.0,0.00017839,2]
[372887790,1752793848859,-460.0,0.00017839,2]
[372887791,1752793848869,-460.0,0.00017839,2]
[372887792,1752793848879,-460.0,0.00017839,2]
[372887793,1752793848888,-460.0,0.00017839,2]
[372887794,1752793848898,-460.0,0.00017839,2]
[372887795,1752793848908,-460.0,0.00017839,2]
[372887796,1752793848918,-463.45,0.00017839,2]
[372887797,1752793848928,-432.45,0.00017839,2]
[372887798,1752793848937,-460.0,0.00017839,2]
[372887799,1752793848947,-460.0,0.00017839,2]
[372887800,1752793848956,-460.0,0.00017839,2]
[372887801,1752793848966,-460.0,0.00017839,2]
[372887802,1752793848976,-460.0,0.00017839,2]
[372887803,1752793848986,-460.0,0.00017839,2]
[372887804,1752793848996,-460.0,0.00017839,2]
[372887805,1752793849007,-460.0,0.00017839,2]
[372887806,1752793849016,-488.28,0.00017839,2]
[372887807,1752793849026,-460.0,0.00017839,2]
[372887808,1752793849037,-460.0,0.00017839,2]
[372887809,1752793849047,-460.0,0.0001784,2]
[372887810,1752793849057,-460.0,0.0001784,2]
[372887811,1752793849066,-460.0,0.0001784,2]
[372887812,1752793849076,-460.0,0.0001784,2]
[372887813,1752793849086,-665.27,0.0001784,2]
[372887814,1752793849096,-460.0,0.0001784,2]
[372887815,1752793849106,-460.0,0.0001784,2]
[372887816,1752793849115,-460.0,0.0001784,2]
[372887817,1752793849125,-460.0,0.0001784,2]
[372887818,1752793849135,-460.0,0.0001784,2]
[372887819,1752793849144,-460.0,0.0001784,2]
[372887820,1752793849154,-460.0,0.0001784,2]